fUSD/lending_fUSD_20240406
["ID","MTS","AMOUNT","RATE_DAILY","PERIOD"]
[321706560,1712419845886,-215.97604231,0.00021159,2]
[321706561,1712419845897,-304.58040453,0.00021159,2]
[321706562,1712419845907,-32204.86347132,0.0002116,2]
[321706563,1712419845917,-2043.28,0.00021161,2]
[321706564,1712419845926,-166.90506153,0.00021169,2]
[321706565,1712419845936,-171.74,0.00021203,2]
[321706566,1712419845946,-586.9014,0.00021227,2]
[321706567,1712419845955,-171.74,0.00021259,2]
[321706568,1712419845965,-171.74,0.00021315,2]
[321706569,1712419845974,-300.0,0.0002135,2]
[321706570,1712419845984,-171.74,0.00021372,2]
[321706571,1712419845994,-882.03,0.00021396,2]
[321706572,1712419846003,-166.90506153,0.00021406,2]
[321706573,1712419846013,-171.74,0.00021428,2]
[321706574,1712419846022,-165.99778872,0.00021448,2]
[321706575,1712419846032,-155.0,0.00021449,2]
[321706576,1712419846041,-550.51311595,0.00021449,2]
[321706577,1712419846051,-283.79529727,0.00021449,2]
[321706578,1712419846061,-155.0,0.0002145,2]
[321706579,1712419846071,-707.20622612,0.0002145,2]
[321706580,1712419846081,-198.22248409,0.0002145,2]
[321706581,1712419846091,-904.74454094,0.0002145,2]
[321706582,1712419846101,-2986.9437887,0.0002145,2]
[321706583,1712419846111,-2634.04674469,0.0002145,2]
[321706584,1712419846120,-205.79634065,0.0002145,2]
[321706585,1712419846130,-238.40860617,0.0002145,2]
[321706586,1712419846140,-155.38967281,0.0002145,2]
[321706587,1712419846150,-1062.53945412,0.0002145,2]
[321706588,1712419846160,-500.0,0.00021456,2]
[321706589,1712419846169,-171.74,0.00021484,2]
[321706590,1712419846179,-6105.18427136,0.00021487,2]
[321706591,1712419846188,-1714.10036197,0.00021487,2]
[321706592,1712419846198,-1314.31991732,0.000215,2]
[321706593,1712419846207,-421.82187408,0.00021503,4]
[321706594,1712419846217,-191.76981577,0.00021503,4]
[321706595,1712419846226,-350.76102204,0.00021514,2]
[321706596,1712419846236,-155.0,0.00021515,2]
[321706597,1712419846245,-4228.08751554,0.00021515,2]
[321706598,1712419846255,-150.0,0.00021516,4]
[321706599,1712419846264,-421.82187408,0.00021527,4]
[321706600,1712419846273,-191.76981577,0.00021527,4]
[321706601,1712419846283,-171.74,0.0002154,2]
[321706602,1712419846292,-150.0,0.00021541,4]
[321706603,1712419846302,-421.82187408,0.00021551,4]
[321706604,1712419846311,-191.76981577,0.00021551,4]
[321706605,1712419846321,-150.0,0.00021553,4]
[321706606,1712419846330,-150.0,0.00021566,4]
[321706607,1712419846339,-421.82187408,0.00021574,4]
[321706608,1712419846349,-191.76981577,0.00021574,4]
[321706609,1712419846359,-150.0,0.00021592,4]
[321706610,1712419846368,-171.74,0.00021597,2]
[321706611,1712419846377,-421.82187408,0.00021598,4]
[321706612,1712419846387,-191.76981577,0.00021598,4]
[321706613,1712419846396,-150.0,0.00021617,4]
[321706614,1712419846406,-421.82187408,0.00021621,4]
[321706615,1712419846416,-191.76981577,0.00021621,4]
[321706616,1712419846426,-150.0,0.00021631,4]
[321706617,1712419846436,-150.0,0.00021643,4]
[321706618,1712419846446,-166.90506153,0.00021643,2]
[321706619,1712419846456,-421.82187408,0.00021645,4]
[321706620,1712419846467,-191.76981577,0.00021645,4]
[321706621,1712419846479,-150.0,0.00021668,4]
[321706622,1712419846489,-421.82187408,0.00021668,4]
[321706623,1712419846499,-191.76981577,0.00021668,4]
[321706624,1712419846510,-421.82187408,0.00021692,4]
[321706625,1712419846521,-191.76981577,0.00021692,4]
[321706626,1712419846531,-150.0,0.00021693,4]
[321706627,1712419846540,-150.0,0.00021708,4]
[321706628,1712419846551,-421.82187408,0.00021716,4]
[321706629,1712419846562,-191.76981577,0.00021716,4]
[321706630,1712419846573,-150.0,0.00021719,4]
[321706631,1712419846582,-421.82187408,0.00021739,4]
[321706632,1712419846592,-191.76981577,0.00021739,4]
[321706633,1712419846603,-150.0,0.00021744,4]
[321706634,1712419846613,-421.82187408,0.00021763,4]
[321706635,1712419846623,-191.76981577,0.00021763,4]
[321706636,1712419846632,-150.0,0.00021769,4]
[321706637,1712419846642,-704.50541,0.0002178,2]
[321706638,1712419846651,-421.82187408,0.00021786,4]
[321706639,1712419846661,-191.76981577,0.00021786,4]
[321706640,1712419846671,-150.0,0.00021786,4]
[321706641,1712419846681,-150.0,0.00021786,4]
[321706642,1712419846690,-150.0,0.00021786,4]
[321706643,1712419846701,-150.0,0.00021786,4]
[321706644,1712419846711,-150.0,0.00021795,4]
[321706645,1712419846721,-421.82187408,0.0002181,4]
[321706646,1712419846730,-191.76981577,0.0002181,4]
[321706647,1712419846740,-150.0,0.0002182,4]
[321706648,1712419846750,-421.82187408,0.00021833,4]
[321706649,1712419846759,-191.76981577,0.00021833,4]
[321706650,1712419846768,-150.0,0.00021846,4]
[321706651,1712419846778,-421.82187408,0.00021857,4]
[321706652,1712419846788,-191.76981577,0.00021857,4]
[321706653,1712419846798,-150.0,0.00021864,4]
[321706654,1712419846808,-150.0,0.00021871,4]
[321706655,1712419846817,-166.90506153,0.0002188,2]
[321706656,1712419846827,-421.82187408,0.00021881,4]
[321706657,1712419846838,-191.76981577,0.00021881,4]
[321706658,1712419846848,-150.0,0.00021896,4]
[321706659,1712419846859,-421.82187408,0.00021904,4]
[321706660,1712419846869,-191.76981577,0.00021904,4]
[321706661,1712419846880,-174.38,0.00021907,2]
[321706662,1712419846890,-6105.18427136,0.00021914,2]
[321706663,1712419846900,-1714.10036197,0.00021914,2]
[321706664,1712419846911,-500.0,0.00021917,2]
[321706665,1712419847129,-500.0,0.00021917,2]
[321706666,1712419847140,-500.0,0.00021917,2]
[321706667,1712419847150,-500.0,0.00021917,2]
[321706668,1712419847160,-409.2889537,0.00021917,2]
[321706669,1712419847169,-500.0,0.00021917,2]
[321706670,1712419847178,-500.0,0.00021917,2]
[321706671,1712419847188,-500.0,0.00021917,2]
[321706672,1712419847197,-2291.75,0.00021917,2]
[321706673,1712419847207,-500.0,0.00021917,2]
[321706674,1712419847217,-500.0,0.00021917,2]
[321706675,1712419847227,-500.0,0.00021917,2]
[321706676,1712419847237,-500.0,0.00021917,2]
[321706677,1712419847247,-500.0,0.00021917,2]
[321706678,1712419847256,-500.0,0.00021917,2]
[321706679,1712419847265,-500.0,0.00021917,2]
[321706680,1712419847275,-500.0,0.00021917,2]
[321706681,1712419847286,-500.0,0.00021917,2]
[321706682,1712419847295,-500.0,0.00021917,2]
[321706683,1712419847306,-500.0,0.00021917,2]
[321706684,1712419847315,-500.0,0.00021917,2]
[321706685,1712419847324,-500.0,0.00021917,2]
[321706686,1712419847334,-202.32300658,0.00021917,2]
[321706687,1712419847343,-500.0,0.00021917,2]
[321706688,1712419847353,-500.0,0.00021917,2]
[321706689,1712419847362,-500.0,0.00021917,2]
[321706690,1712419847371,-60.1316786,0.00021917,2]
[321706691,1712419855045,824.54,0.00019165,2]
[321706693,1712419862981,450.43164634,0.000206,2]
[321706694,1712419866303,1308.58983327,0.00020819,2]
[321706695,1712419867010,1412.36296071,0.00020819,2]
[321706696,1712419869093,2347.42845848,0.00020999,2]
[321706697,1712419876721,555.9207,0.00020906,2]
[321706700,1712419924428,500.0,0.0002036,2]
[321706701,1712419935014,242.488,0.00020951,2]
[321706702,1712419961397,3178.37,0.00020922,2]
[321706703,1712419968855,-500.0,0.0002101,2]
[321706704,1712419968881,-200.0,0.00021023,2]
[321706705,1712419968910,-1300.0,0.00021044,2]
[321706706,1712419969521,-2000.0,0.00021044,2]
[321706707,1712419969966,-2000.0,0.00021044,2]
[321706708,1712419970315,-2000.0,0.00021044,2]
[321706709,1712419970616,-1679.5067146,0.00021044,2]
[321706710,1712419970639,-320.4932854,0.00021045,2]
[321706711,1712419971012,-179.5067146,0.00021045,2]
[321706712,1712419971036,-1820.4932854,0.00021046,2]
[321706713,1712419971294,-2000.0,0.00021046,2]
[321706714,1712419971617,-2000.0,0.00021046,2]
[321706715,1712419971991,-2000.0,0.00021046,2]
[321706716,1712419972340,-292.0367146,0.00021046,2]
[321706717,1712419972361,-150.0,0.0002105,2]
[321706718,1712419972383,-1557.9632854,0.00021051,2]
[321706719,1712419972668,-2000.0,0.00021051,2]
[321706720,1712419972979,-2000.0,0.00021051,2]
[321706721,1712419973640,-2000.0,0.00021051,2]
[321706722,1712419974205,-93.7667146,0.00021051,2]
[321706723,1712419974230,-328.0,0.00021071,2]
[321706724,1712419974254,-1057.98647685,0.00021139,2]
[321706725,1712419974276,-520.24680855,0.00021158,2]
[321706726,1712419975000,-226.36214176,0.00021158,2]
[321706727,1712419975021,-547.24726264,0.00021158,2]
[321706728,1712420043818,-160.04,0.00021004,2]
[321706729,1712420043846,-150.0,0.00021007,2]
[321706730,1712420043870,-197.55426135,0.00021158,2]
[321706731,1712420043895,-407.398739,0.00021158,2]
[321706732,1712420043920,-322.9996588,0.00021158,2]
[321706733,1712420043945,-762.00734085,0.00021169,2]
[321706734,1712420044661,-1574.97265915,0.00021169,2]
[321706735,1712420044688,-154.55,0.00021224,2]
[321706736,1712420044713,-270.47734085,0.00021429,2]
[321706737,1712420045415,-554.06265915,0.00021429,2]
[321706738,1712420045441,-500.0,0.00021456,2]
[321706739,1712420045469,-154.55,0.00021592,2]
[321706740,1712420045497,-299.65527006,0.00021696,2]
[321706741,1712420045531,-491.73207079,0.000217,2]
[321706742,1712420046037,-27.69792921,0.000217,2]
[321706743,1712420046062,-150.0,0.000217,2]
[321706744,1712420046088,-1199.87025346,0.00021905,2]
[321706745,1712420046112,-622.43181733,0.00021905,2]
[321706747,1712420057031,-200.0,0.00021067,2]
[321706748,1712420057053,-500.0,0.00021223,2]
[321706749,1712420057075,-166.69,0.00021703,2]
[321706750,1712420057098,-1133.31,0.00021905,2]
[321706751,1712420057482,-2000.0,0.00021905,2]
[321706752,1712420057908,-517.88717264,0.00021905,2]
[321706753,1712420057936,-661.78401527,0.00021915,2]
[321706754,1712420057960,-324.81075707,0.00021915,2]
[321706755,1712420057986,-495.51805502,0.00021915,2]
[321706757,1712420066672,-42.12508846,0.00021915,2]
[321706758,1712420066693,-311.94331547,0.00021916,2]
[321706759,1712420066713,-155.0,0.00021917,2]
[321706760,1712420066733,-500.0,0.00021917,2]
[321706761,1712420066757,-500.0,0.00021917,2]
[321706762,1712420066778,-490.93159607,0.00021917,2]
[321706763,1712420067143,-9.06840393,0.00021917,2]
[321706764,1712420067166,-500.0,0.00021917,2]
[321706765,1712420067188,-500.0,0.00021917,2]
[321706766,1712420067209,-500.0,0.00021917,2]
[321706767,1712420067231,-490.93159607,0.00021917,2]
[321706768,1712420067637,-9.06840393,0.00021917,2]
[321706769,1712420067659,-500.0,0.00021917,2]
[321706770,1712420067681,-500.0,0.00021917,2]
[321706771,1712420067703,-194.19175922,0.00021917,2]
[321706772,1712420067724,-500.0,0.00021917,2]
[321706773,1712420067745,-296.73983685,0.00021917,2]
[321706774,1712420072537,172.09,0.00016712,2]
[321706775,1712420074846,-500.0,0.00021916,2]
[321706776,1712420074868,-203.26016315,0.00021917,2]
[321706777,1712420074890,-500.0,0.00021917,2]
[321706778,1712420074913,-500.0,0.00021917,2]
[321706779,1712420074934,-296.73983685,0.00021917,2]
[321706780,1712420075771,-203.26016315,0.00021917,2]
[321706781,1712420075794,-500.0,0.00021917,2]
[321706782,1712420075817,-500.0,0.00021917,2]
[321706783,1712420075840,-515.62669489,0.00021917,2]
[321706784,1712420075862,-281.11314196,0.00021917,2]
[321706785,1712420082738,-494.25685804,0.00021917,2]
[321706786,1712420082763,-506.43315293,0.00021917,2]
[321706787,1712420082784,-526.1304824,0.00021917,2]
[321706788,1712420082807,-473.17950663,0.00021917,2]
[321706789,1712420090843,-48.81499043,0.00021917,2]
[321706790,1712420090867,-177.42,0.00021917,2]
[321706791,1712420090891,-500.0,0.00021917,2]
[321706792,1712420090914,-500.0,0.00021917,2]
[321706793,1712420090937,-773.76500957,0.00021917,2]
[321706794,1712420091328,-285.90499043,0.00021917,2]
[321706795,1712420091351,-523.22984874,0.00021917,2]
[321706796,1712420091374,-582.63,0.00021917,2]
[321706797,1712420091398,-604.51,0.00021917,2]
[321706798,1712420091423,-3.72516083,0.00021917,2]
[321706799,1712420091854,-853.64483917,0.00021917,2]
[321706800,1712420091876,-500.0,0.00021917,2]
[321706801,1712420091897,-646.35516083,0.00021917,2]
[321706802,1712420092390,-200.20483917,0.00021917,2]
[321706803,1712420092412,-1799.79516083,0.00021917,2]
[321706804,1712420097959,343.3166945,0.0002036,2]
[321706805,1712420101066,-13.21483917,0.00021917,2]
[321706806,1712420101086,-523.81896647,0.00021917,2]
[321706807,1712420101107,-500.0,0.00021917,2]
[321706808,1712420101129,-524.98139778,0.00021917,2]
[321706809,1712420101150,-437.98479658,0.00021917,2]
[321706810,1712420101600,-1758.27520342,0.00021917,2]
[321706811,1712420101632,-241.72479658,0.00021917,2]
[321706812,1712420102118,-150.0,0.00021916,2]
[321706813,1712420102143,-258.27520342,0.00021917,2]
[321706814,1712420102167,-1591.72479658,0.00021917,2]
[321706815,1712420102675,-694.21520342,0.00021917,2]
[321706816,1712420102698,-500.0,0.00021917,2]
[321706817,1712420102722,-500.0,0.00021917,2]
[321706818,1712420102745,-305.78479658,0.00021917,2]
[321706819,1712420103270,-378.14520342,0.00021917,2]
[321706820,1712420103294,-500.0,0.00021917,2]
[321706821,1712420103319,-1121.85479658,0.00021917,2]
[321706822,1712420103901,-189.66520342,0.00021917,2]
[321706823,1712420103922,-452.21488982,0.00021917,2]
[321706824,1712420103945,-500.0,0.00021917,2]
[321706825,1712420103968,-858.11990676,0.00021917,2]
[321706826,1712420104553,-582.45009324,0.00021917,2]
[321706827,1712420104578,-500.0,0.00021917,2]
[321706828,1712420104600,-917.54990676,0.00021917,2]
[321706829,1712420105181,-77.72009324,0.00021917,2]
[321706830,1712420105203,-617.53,0.00021917,2]
[321706831,1712420105225,-329.860949,0.00021917,2]
[321706832,1712420105247,-500.0,0.00021917,2]
[321706833,1712420105269,-474.88895776,0.00021917,2]
[321706834,1712420105782,-25.11104224,0.00021917,2]
[321706835,1712420105804,-500.0,0.00021917,2]
[321706836,1712420105825,-584.14,0.00021917,2]
[321706837,1712420105847,-500.0,0.00021917,2]
[321706838,1712420105871,-390.74895776,0.00021917,2]
[321706839,1712420106366,-220.97104224,0.00021917,2]
[321706840,1712420106388,-500.0,0.00021917,2]
[321706841,1712420106411,-582.5,0.00021917,2]
[321706842,1712420106434,-444.81673237,0.00021917,2]
[321706843,1712420106458,-251.71222539,0.00021917,2]
[321706844,1712420153973,-1041.92528332,0.00021916,2]
[321706845,1712420153999,-958.07471668,0.00021916,2]
[321706846,1712420154774,-500.0,0.00021915,2]
[321706847,1712420154797,-1500.0,0.00021916,2]
[321706848,1712420155355,-2000.0,0.00021916,2]
[321706849,1712420156111,-2000.0,0.00021916,2]
[321706850,1712420156739,-2000.0,0.00021916,2]
[321706851,1712420157827,-2000.0,0.00021916,2]
[321706852,1712420158716,-2000.0,0.00021073,2]
[321706853,1712420159033,-2000.0,0.00021073,2]
[321706854,1712420159609,-2000.0,0.00021073,2]
[321706855,1712420160170,-2000.0,0.00021073,2]
[321706856,1712420163448,1450.0,0.00021,3]
[321706857,1712420175320,-2000.0,0.00021073,2]
[321706858,1712420175947,-2000.0,0.00021073,2]
[321706859,1712420176539,-2000.0,0.00021073,2]
[321706860,1712420176978,855.381881,0.00020889,2]
[321706861,1712420177189,-2000.0,0.00021073,2]
[321706862,1712420177349,364.38794181,0.00020889,2]
[321706863,1712420183003,-281.0,0.00021073,2]
[321706864,1712420202988,800.0,0.00021,2]
[321706867,1712420236984,1832.8469,0.00020907,2]
[321706868,1712420288276,1542.02282521,0.0002097,2]
[321706870,1712420326752,3674.0,0.00021,2]
[321706872,1712420362082,737.6,0.00020948,2]
[321706873,1712420373700,847.49,0.00019031,2]
[321706874,1712420388896,283.05577076,0.00020999,2]
[321706875,1712420402796,150.0,0.00019031,2]
[321706876,1712420412703,5474.23,0.00020938,2]
[321706877,1712420427444,167.33386993,0.00020902,2]
[321706878,1712420438597,200.0,0.00020938,2]
[321706879,1712420446887,500.0,0.00020938,2]
[321706881,1712420469029,1585.95,0.00020921,2]
[321706884,1712420560228,1770.37222394,0.00020972,2]
[321706885,1712420567868,287.56551453,0.00020921,2]
[321706886,1712420587770,385.41300719,0.00020921,2]
[321706887,1712420599390,250.0,0.00020871,2]
[321706888,1712420632730,10313.05,0.00020852,2]
[321706890,1712420703743,257.31134319,0.00020984,4]
[321706891,1712420704072,257.31134319,0.00021007,4]
[321706892,1712420704383,257.31134319,0.00021031,4]
[321706893,1712420704690,257.31134319,0.00021054,4]
[321706894,1712420705002,257.31134319,0.00021078,4]
[321706895,1712420705288,257.31134319,0.00021101,4]
[321706896,1712420705603,257.31134319,0.00021125,4]
[321706897,1712420705939,257.31134319,0.00021148,4]
[321706898,1712420706258,257.31134319,0.00021172,4]
[321706899,1712420707121,257.31134319,0.00021196,4]
[321706900,1712420707425,257.31134319,0.00021219,4]
[321706901,1712420707723,257.31134319,0.00021243,4]
[321706902,1712420708062,257.31134319,0.00021266,4]
[321706903,1712420708359,257.31134319,0.0002129,4]
[321706904,1712420709033,257.31134319,0.00021313,4]
[321706905,1712420709084,257.31134319,0.00021337,4]
[321706906,1712420709817,257.31134319,0.0002136,4]
[321706907,1712420710119,257.31134319,0.00021384,4]
[321706908,1712420710451,257.31134319,0.00021407,4]
[321706909,1712420710766,257.31134319,0.00021431,4]
[321706910,1712420711125,257.31134319,0.00021455,4]
[321706911,1712420711469,257.31134319,0.00021478,4]
[321706912,1712420718942,7609.5233811,0.00020902,2]
[321706913,1712420720885,2034.835608,0.00020895,2]
[321706914,1712420741460,150.0,0.00020984,2]
[321706915,1712420741753,150.0,0.00021025,4]
[321706916,1712420742087,150.0,0.00021067,4]
[321706917,1712420742398,150.0,0.00021108,4]
[321706918,1712420742685,150.0,0.0002115,4]
[321706919,1712420742975,150.0,0.00021192,4]
[321706920,1712420743292,150.0,0.00021233,4]
[321706921,1712420743593,150.0,0.00021275,4]
[321706922,1712420743915,150.0,0.00021317,4]
[321706923,1712420744211,150.0,0.00021358,4]
[321706924,1712420744764,150.0,0.000214,4]
[321706925,1712420745619,150.0,0.00021442,4]
[321706926,1712420745940,150.0,0.00021483,4]
[321706927,1712420763775,150.0,0.00020984,2]
[321706928,1712420767651,150.0,0.00020984,2]
[321706929,1712420768015,150.0,0.00021014,4]
[321706931,1712420768324,150.0,0.00021045,4]
[321706932,1712420768763,150.0,0.00021076,4]
[321706933,1712420769065,150.0,0.00021106,4]
[321706934,1712420769375,150.0,0.00021137,4]
[321706935,1712420769663,150.0,0.00021168,4]
[321706936,1712420769976,150.0,0.00021198,4]
[321706937,1712420770319,150.0,0.00021229,4]
[321706938,1712420770850,150.0,0.0002126,4]
[321706939,1712420770927,150.0,0.0002129,4]
[321706940,1712420771283,150.0,0.00021321,4]
[321706941,1712420771602,150.0,0.00021352,4]
[321706942,1712420771951,150.0,0.00021382,4]
[321706943,1712420772237,150.0,0.00021413,4]
[321706944,1712420772518,150.0,0.00021444,4]
[321706945,1712420772878,150.0,0.00021474,4]
[321706946,1712420796438,264.09868222,0.00020984,2]
[321706947,1712420798656,150.0,0.00020984,2]
[321706949,1712420801682,150.0,0.00020984,2]
[321706950,1712420804341,150.0,0.00020984,2]
[321706951,1712420806678,150.0,0.00020984,2]
[321706952,1712420807002,150.0,0.00021113,4]
[321706953,1712420807333,150.0,0.00021243,4]
[321706954,1712420807650,150.0,0.00021372,4]
[321706955,1712420812056,199.7622544,0.00020902,2]
[321706956,1712420814651,150.0,0.00020984,2]
[321706957,1712420818993,155.67732015,0.00020984,2]
[321706958,1712420839892,9451.32339768,0.00020984,2]
[321706959,1712420855094,298.57199912,0.00020984,2]
[321706960,1712420862096,359.14728613,0.00020984,2]
[321706962,1712420881587,219.074091,0.00020984,2]
[321706965,1712420900814,409.92,0.00020764,2]
[321706966,1712420900928,6001.83,0.00020764,2]
[321706967,1712420905478,787.34,0.00020927,2]
[321706969,1712420909336,805.11,0.00018847,2]
[321706972,1712420930045,500.0,0.00020764,2]
[321706973,1712420937459,200.0,0.00020764,2]
[321706977,1712420949553,792.97,0.00020764,2]
[321706979,1712420952217,11287.1280336,0.00018847,2]
[321706980,1712420953267,15693.1233579,0.00018847,2]
[321706981,1712420980621,153.07,0.00020921,2]
[321706998,1712421011134,3155.84658012,0.00020611,2]
[321706999,1712421026384,5530.76208236,0.00020999,2]
[321707000,1712421027053,3155.84658012,0.00020609,2]
[321707001,1712421027295,166.88650538,0.00020999,2]
[321707002,1712421027934,175.73,0.00016578,2]
[321707003,1712421029493,500.0,0.00020999,2]
[321707066,1712421033782,-29.48187185,0.00021,2]
[321707067,1712421033812,-1266.30077023,0.00021,2]
[321707068,1712421033827,-165.74,0.00021002,2]
[321707069,1712421033838,-153.07,0.0002103,2]
[321707070,1712421033852,-805.11,0.00021111,2]
[321707071,1712421033864,-150.0,0.00021125,2]
[321707072,1712421033875,-150.0,0.00021125,2]
[321707073,1712421033886,-4528.11,0.00021126,2]
[321707074,1712421033899,-153.07,0.00021139,2]
[321707075,1712421033911,-153.07,0.00021248,2]
[321707076,1712421033922,-153.07,0.00021357,2]
[321707077,1712421033936,-199.7622544,0.00021436,2]
[321707078,1712421033948,-153.07,0.00021466,2]
[321707079,1712421033959,-155.0,0.00021477,2]
[321707080,1712421033971,-257.31134319,0.00021502,4]
[321707081,1712421033983,-150.0,0.00021502,4]
[321707082,1712421033994,-150.0,0.00021505,4]
[321707083,1712421034006,-499.99,0.00021505,2]
[321707084,1712421034018,-150.99,0.00021505,2]
[321707085,1712421034030,-150.0,0.00021525,4]
[321707086,1712421034044,-257.31134319,0.00021525,4]
[321707087,1712421034055,-150.0,0.00021536,4]
[321707088,1712421034068,-257.31134319,0.00021549,4]
[321707089,1712421034087,-150.0,0.00021566,4]
[321707090,1712421034101,-150.0,0.00021566,4]
[321707091,1712421034113,-257.31134319,0.00021572,4]
[321707092,1712421034125,-153.07,0.00021575,2]
[321707093,1712421034137,-257.31134319,0.00021596,4]
[321707094,1712421034148,-150.0,0.00021597,4]
[321707095,1712421034160,-150.0,0.00021608,4]
[321707096,1712421034173,-257.31134319,0.00021619,4]
[321707097,1712421034185,-150.0,0.00021628,4]
[321707098,1712421034197,-150.0,0.00021631,4]
[321707099,1712421034208,-257.31134319,0.00021643,4]
[321707100,1712421034219,-150.0,0.0002165,4]
[321707101,1712421034231,-150.0,0.00021658,4]
[321707102,1712421034242,-257.31134319,0.00021667,4]
[321707103,1712421034252,-425.75453347,0.00021683,2]
[321707104,1712421034263,-153.07,0.00021684,2]
[321707105,1712421034274,-150.0,0.00021689,4]
[321707106,1712421034285,-257.31134319,0.0002169,4]
[321707107,1712421034297,-150.0,0.00021691,4]
[321707108,1712421034307,-407.1301357,0.00021694,2]
[321707109,1712421034317,-1000.0,0.00021694,2]
[321707110,1712421034331,-217.34488466,0.00021694,2]
[321707111,1712421034342,-407.75685115,0.00021694,2]
[321707112,1712421034353,-2845.67248238,0.00021694,2]
[321707113,1712421034363,-155.0,0.00021694,2]
[321707114,1712421034374,-615.83031697,0.00021694,2]
[321707115,1712421034385,-3372.0620942,0.00021694,2]
[321707116,1712421034395,-522.31122644,0.00021695,2]
[321707117,1712421034405,-155.0,0.00021695,2]
[321707118,1712421034417,-1221.36561654,0.00021695,2]
[321707119,1712421034427,-485.70839377,0.00021695,2]
[321707120,1712421034440,-155.13780993,0.00021695,2]
[321707121,1712421034450,-735.77904189,0.00021695,2]
[321707122,1712421034463,-720.56488246,0.00021696,2]
[321707123,1712421034477,-518.15632294,0.00021696,2]
[321707124,1712421034488,-704.49276447,0.00021696,2]
[321707125,1712421034498,-158.90091262,0.00021696,2]
[321707126,1712421034532,1240.92917042,0.00020999,2]
[321707127,1712421034561,-203.29678547,0.00021696,2]
[321707128,1712421034574,-229.09762976,0.00021696,2]
[321707129,1712421034746,1210.58734192,0.00020999,2]
[321707131,1712421036426,2987.6067788,0.00020999,2]
[321707140,1712421038162,-193.75811988,0.00021694,2]
[321707141,1712421038173,-706.99577818,0.00021694,2]
[321707142,1712421038184,-5372.04111444,0.00021694,2]
[321707143,1712421038195,-217.79031344,0.00021696,2]
[321707144,1712421038206,-857.64736696,0.00021696,2]
[321707145,1712421038216,-155.0,0.00021696,2]
[321707146,1712421038227,-681.90393791,0.00021696,2]
[321707147,1712421038238,-4319.68197002,0.00021696,2]
[321707148,1712421038249,-2352.12069937,0.00021696,2]
[321707149,1712421038260,-2475.61444472,0.00021696,2]
[321707172,1712421039269,1253.03389142,0.00020998,2]
[321707260,1712421040697,-608.54,0.00021696,2]
[321707345,1712421043241,-3525.79269176,0.00021695,2]
[321707346,1712421043251,-1224.97888251,0.00021696,2]
[321707347,1712421043261,-324.73348101,0.00021696,2]
[321707348,1712421043270,-1044.27755831,0.00021696,2]
[321707349,1712421043279,-206.09224907,0.00021696,2]
[321707350,1712421043289,-205.75093505,0.00021696,2]
[321707351,1712421043298,-207.05796407,0.00021697,2]
[321707352,1712421043307,-3055.742172,0.00021697,2]
[321707353,1712421043316,-35142.15424354,0.00021698,2]
[321707354,1712421043325,-661.63817277,0.00021698,2]
[321707355,1712421043336,-155.0,0.00021698,2]
[321707356,1712421043346,-2172.31241401,0.00021698,2]
[321707357,1712421043355,-666.66666666,0.00021699,2]
[321707358,1712421043365,-53153.79560155,0.000217,2]
[321707359,1712421043374,-587.08784,0.000217,2]
[321707360,1712421043383,-257.31134319,0.00021714,4]
[321707361,1712421043392,-150.0,0.0002172,4]
[321707362,1712421043401,-150.0,0.00021733,4]
[321707363,1712421043411,-257.31134319,0.00021737,4]
[321707364,1712421043420,-150.0,0.00021751,4]